bitfinex/quotes_BTCUSD_20251207
["timestamp","ask_amount","ask_price","bid_price","bid_amount"]
[1765077648961,0.01115461,89649.0,89640.0,0.10465526]
[1765077649256,0.01115486,89647.0,89640.0,0.10465526]
[1765077649649,0.01115498,89646.0,89640.0,0.0823438]
[1765077650002,0.01115473,89648.0,89640.0,0.0823438]
[1765077651306,0.09480734,89648.0,89640.0,0.0823438]
[1765077652500,0.01115486,89647.0,89640.0,0.0823438]
[1765077653219,0.01115498,89646.0,89640.0,0.0574538]
[1765077654051,0.26148001,89641.0,89640.0,0.00624111]
[1765077654260,0.3172803,89641.0,89640.0,0.00624111]
[1765077654824,0.3172803,89641.0,89640.0,0.00024111]
[1765077655383,0.2568703,89641.0,89640.0,0.00124111]
[1765077658639,0.05135811,89641.0,89640.0,0.04074111]
[1765077658859,0.03375811,89641.0,89640.0,0.28745324]
[1765077659171,0.00025782,89641.0,89640.0,0.26514178]
[1765077659813,0.00025782,89641.0,89640.0,0.29864061]
[1765077676069,0.00025782,89641.0,89640.0,0.27459061]
[1765077676816,0.00025782,89641.0,89640.0,0.29728061]
[1765077681829,0.00025782,89641.0,89640.0,0.03602593]
[1765077682048,0.03984782,89641.0,89640.0,0.00124111]
[1765077682253,0.0510028,89641.0,89640.0,0.00124111]
[1765077682822,0.0270228,89641.0,89640.0,0.00124111]
[1765077683024,0.0114128,89641.0,89640.0,0.00124111]
[1765077685817,0.0353928,89641.0,89640.0,0.00124111]
[1765077686192,0.0510028,89641.0,89640.0,0.00124111]
[1765077697008,0.0114128,89641.0,89640.0,0.00124111]
[1765077700749,0.0510028,89641.0,89640.0,0.00124111]
[1765077701802,0.03984782,89641.0,89640.0,0.00124111]
[1765077703865,0.06214782,89641.0,89640.0,0.00124111]
[1765077713520,0.03984782,89641.0,89640.0,0.00124111]
[1765077714114,0.00025782,89641.0,89640.0,0.00124111]
[1765077720087,0.01785782,89641.0,89640.0,0.00124111]
[1765077722348,0.02940782,89641.0,89640.0,0.00124111]
[1765077722559,0.06839469,89641.0,89640.0,0.00124111]
[1765077722784,0.82315602,89641.0,89640.0,0.00124111]
[1765077722980,0.10115602,89641.0,89640.0,0.00124111]
[1765077723349,0.07885602,89641.0,89640.0,0.00124111]
[1765077723964,0.08085602,89641.0,89640.0,0.00024111]
[1765077724300,0.06939469,89641.0,89640.0,0.00024111]
[1765077724516,0.09369469,89641.0,89640.0,0.00024111]
[1765077724668,0.09269469,89641.0,89640.0,0.00024111]
[1765077726633,0.07039469,89641.0,89640.0,0.00024111]
[1765077726793,0.09269469,89641.0,89640.0,0.00024111]
[1765077729618,0.07039469,89641.0,89640.0,0.00024111]
[1765077729849,0.09269469,89641.0,89640.0,0.00024111]
[1765077733480,0.07039469,89641.0,89640.0,0.00024111]
[1765077733703,0.04675469,89641.0,89640.0,0.00024111]
[1765077733910,0.07074469,89641.0,89640.0,0.00024111]
[1765077734321,0.09304469,89641.0,89640.0,0.00024111]
[1765077751117,0.07074469,89641.0,89640.0,0.00024111]
[1765077751264,0.09304469,89641.0,89640.0,0.00024111]
[1765077752142,0.10350634,89641.0,89640.0,0.00024111]
[1765077752421,0.08120634,89641.0,89640.0,0.00024111]
[1765077752598,0.10350634,89641.0,89640.0,0.00024111]
[1765077763151,0.13701078,89641.0,89640.0,0.00024111]
[1765077764584,0.11471078,89641.0,89640.0,0.00024111]
[1765077764764,0.13701078,89641.0,89640.0,0.00024111]
[1765077780043,0.13701078,89641.0,89613.0,0.04002555]
[1765077780044,0.01115747,89626.0,89613.0,0.04002555]
[1765077780251,0.01115747,89626.0,89608.0,0.06003583]
[1765077780252,0.01115971,89608.0,89606.0,0.01093]
[1765077780425,0.22320432,89604.0,89603.0,0.01093]
[1765077780605,0.01115996,89606.0,89604.0,0.02411]
[1765077780803,0.01115996,89606.0,89605.0,0.01515]
[1765077781010,0.01115996,89606.0,89605.0,0.00128599]
[1765077781409,0.01115996,89606.0,89605.0,0.04054599]
[1765077782570,0.01115996,89606.0,89605.0,0.04154599]
[1765077782776,0.01115996,89606.0,89605.0,0.04254599]
[1765077785501,0.01115996,89606.0,89605.0,0.05347599]
[1765077787260,0.01115996,89606.0,89605.0,0.01421599]
[1765077787462,0.02143996,89606.0,89605.0,0.00328599]
[1765077787658,0.06715996,89606.0,89605.0,0.00434133]
[1765077787888,0.02143996,89606.0,89605.0,0.00434133]
[1765077788093,0.01115996,89606.0,89605.0,0.00434133]
[1765077788300,0.01115996,89606.0,89605.0,0.00334133]
[1765077788946,0.01115996,89606.0,89605.0,0.00234133]
[1765077789473,0.01115996,89606.0,89605.0,0.00334133]
[1765077794445,0.23435485,89608.0,89605.0,0.05462133]
[1765077794691,0.09481207,89610.0,89607.0,0.02983084]
[1765077794841,0.09481207,89610.0,89609.0,0.01639]
[1765077795046,0.09481207,89610.0,89609.0,0.04163599]
[1765077795534,0.01115897,89614.0,89609.0,0.05279558]
[1765077795707,0.01115897,89614.0,89610.0,0.02396]
[1765077795881,0.01115897,89614.0,89613.0,0.0272]
[1765077796084,0.01115897,89614.0,89613.0,0.02848599]
[1765077796367,0.01115897,89614.0,89613.0,0.05244599]
[1765077797204,0.09481145,89615.0,89613.0,0.05244599]
[1765077797406,0.01115859,89617.0,89614.0,0.04035]
[1765077797660,0.01115834,89619.0,89616.0,0.01639]
[1765077797791,0.01115834,89619.0,89618.0,0.02732]
[1765077798219,0.01115834,89619.0,89618.0,0.05128]
[1765077798399,0.01115834,89619.0,89618.0,0.05256599]
[1765077798979,0.01115809,89621.0,89618.0,0.05256599]
[1765077799184,0.01115809,89621.0,89619.0,0.04035]
[1765077799378,0.01115809,89621.0,89619.0,0.04163599]
[1765077799608,0.01115809,89621.0,89620.0,0.04035]
[1765077799812,0.01115809,89621.0,89620.0,0.04163599]
[1765077800225,0.2343137,89624.0,89620.0,0.04163599]
[1765077800226,0.01115785,89623.0,89620.0,0.04163599]
[1765077800431,0.01115785,89623.0,89621.0,0.02396]
[1765077800635,0.01115785,89623.0,89622.0,0.02732]
[1765077800968,0.01115785,89623.0,89622.0,0.02786265]
[1765077801167,0.01115785,89623.0,89622.0,0.05182265]
[1765077801938,0.01115785,89623.0,89622.0,0.05310864]
[1765077802556,0.01215785,89623.0,89622.0,0.05310864]
[1765077806014,0.001,89623.0,89622.0,0.05310864]
[1765077806214,0.224157,89623.0,89622.0,0.05310864]
[1765077810535,0.001,89623.0,89622.0,0.05310864]
[1765077815561,0.001,89623.0,89622.0,0.07542458]
[1765077816797,0.001,89623.0,89622.0,0.09302458]
[1765077817120,0.001,89623.0,89622.0,0.03035864]
[1765077817428,0.22315489,89624.0,89622.0,0.03035864]
[1765077817633,0.22315489,89624.0,89622.0,0.02981599]
[1765077817844,0.22315489,89624.0,89622.0,0.03281599]
[1765077818047,0.22315489,89624.0,89622.0,0.02981599]
[1765077818449,0.22315489,89624.0,89622.0,0.03181599]
[1765077818654,0.22315489,89624.0,89622.0,0.02288599]
[1765077818655,0.01084,89623.0,89622.0,0.02288599]
[1765077819070,0.01084,89623.0,89622.0,0.02088599]
[1765077819398,0.01084,89623.0,89622.0,0.02188599]
[1765077819529,0.01084,89623.0,89622.0,0.01988599]
[1765077819935,0.01084,89623.0,89622.0,0.02088599]
[1765077820127,0.01084,89623.0,89622.0,0.02188599]
[1765077820574,0.01084,89623.0,89622.0,0.01988599]
[1765077820870,0.01084,89623.0,89622.0,0.02088599]
[1765077822894,0.01084,89623.0,89622.0,0.00328599]
[1765077823270,0.01084,89623.0,89622.0,0.00382864]
[1765077823682,0.05135,89623.0,89622.0,0.00382864]
[1765077823882,0.07365,89623.0,89622.0,0.00382864]
[1765077824495,0.07397687,89623.0,89622.0,0.00254265]
[1765077824978,0.05011687,89623.0,89622.0,0.00254265]
[1765077825148,0.05011687,89623.0,89622.0,0.00154265]
[1765077825351,0.07397687,89623.0,89622.0,0.00154265]
[1765077825714,0.07397687,89623.0,89622.0,0.00054265]
[1765077826804,0.05011687,89623.0,89622.0,0.00054265]
[1765077827017,0.07397687,89623.0,89622.0,0.00054265]
[1765077830168,0.03346687,89623.0,89622.0,0.00054265]
[1765077834365,0.07399687,89623.0,89622.0,0.00054265]
[1765077834846,0.04990687,89623.0,89622.0,0.00054265]
[1765077836257,0.07399687,89623.0,89622.0,0.00054265]
[1765077836634,0.04990687,89623.0,89622.0,0.00054265]
[1765077836847,0.02760687,89623.0,89622.0,0.00054265]
[1765077838595,0.01116687,89623.0,89622.0,0.00054265]
[1765077840679,0.22315489,89624.0,89622.0,0.04064265]
[1765077840836,0.22315489,89624.0,89623.0,0.02666]
[1765077841036,0.0111576,89625.0,89623.0,0.02666]
[1765077841393,0.23431034,89625.0,89623.0,0.02717249]
[1765077841688,0.23431034,89625.0,89623.0,0.01081]
[1765077846917,0.23431034,89625.0,89624.0,0.00048234]
[1765077849239,0.29714034,89625.0,89624.0,0.00048234]
[1765077851647,0.29746721,89625.0,89624.0,0.00048234]
[1765077852229,5.3079251,89625.0,89624.0,0.00048234]
[1765077852434,3.5589251,89625.0,89624.0,0.00048234]
[1765077852827,3.2768251,89625.0,89624.0,0.00048234]
[1765077853028,3.2778251,89625.0,89624.0,0.00048234]
[1765077853263,3.45036721,89625.0,89624.0,0.00048234]
[1765077853440,3.33916721,89625.0,89624.0,0.00048234]
[1765077853746,3.16647227,89625.0,89624.0,0.00048234]
[1765077854325,3.45017227,89625.0,89624.0,0.00048234]
[1765077854527,3.29147227,89625.0,89624.0,0.00048234]
[1765077854730,3.18176721,89625.0,89624.0,0.00048234]
[1765077855419,3.18196721,89625.0,89624.0,0.00048234]
[1765077855602,2.55976721,89625.0,89624.0,0.00048234]
[1765077856399,2.56116721,89625.0,89624.0,0.00048234]
[1765077856911,2.44766721,89625.0,89624.0,0.00048234]
[1765077857279,2.44786721,89625.0,89624.0,0.00048234]
[1765077858392,2.44886721,89625.0,89624.0,0.00048234]
[1765077858730,2.55857227,89625.0,89624.0,0.00048234]
[1765077859333,2.55917227,89625.0,89624.0,0.00048234]
[1765077860365,3.93917227,89625.0,89624.0,0.00048234]
[1765077861476,3.94067227,89625.0,89624.0,0.00048234]
[1765077862489,3.94057227,89625.0,89624.0,0.00048234]
[1765077863350,3.39027227,89625.0,89624.0,0.00048234]
[1765077864415,3.38957227,89625.0,89624.0,0.00048234]
[1765077865383,0.40817227,89625.0,89624.0,0.00048234]
[1765077865616,3.39007227,89625.0,89624.0,0.00048234]
[1765077866165,1.88117227,89625.0,89624.0,0.00048234]
[1765077866551,1.88097227,89625.0,89624.0,0.00048234]
[1765077867490,2.45137227,89625.0,89624.0,0.00048234]
[1765077868515,2.44877227,89625.0,89624.0,0.00048234]
[1765077869598,2.45107227,89625.0,89624.0,0.00048234]
[1765077870511,2.53387227,89625.0,89624.0,0.00048234]
[1765077871526,2.53257227,89625.0,89624.0,0.00048234]
[1765077872671,2.53447227,89625.0,89624.0,0.00048234]
[1765077873570,2.53347227,89625.0,89624.0,0.00048234]
[1765077874155,2.49907227,89625.0,89624.0,0.00048234]
[1765077874356,2.36706721,89625.0,89624.0,0.00048234]
[1765077874561,5.30891344,89625.0,89624.0,0.00048234]
[1765077878373,5.33299391,89625.0,89624.0,0.00048234]
[1765077880717,0.33299391,89625.0,89624.0,0.00048234]
[1765077880896,5.30891344,89625.0,89624.0,0.00048234]
[1765077881096,5.44269897,89625.0,89624.0,0.00048234]
[1765077888604,5.33299391,89625.0,89624.0,0.00048234]
[1765077892119,5.28660391,89625.0,89624.0,0.00048234]
[1765077892320,0.26337171,89625.0,89624.0,0.00048234]
[1765077892529,0.25291034,89625.0,89624.0,0.00048234]
[1765077897366,0.0121576,89625.0,89624.0,0.00048234]
[1765077897545,0.001,89625.0,89624.0,0.01738833]
[1765077898027,0.001,89625.0,89624.0,0.00176833]
[1765077899209,0.22415202,89625.0,89624.0,0.00176833]
[1765077899414,0.001,89625.0,89624.0,0.00176833]
[1765077899590,0.22415202,89625.0,89624.0,0.00176833]
[1765077907308,0.21915202,89625.0,89624.0,0.00176833]
[1765077914357,0.24145202,89625.0,89624.0,0.00176833]
[1765077916161,0.21915202,89625.0,89624.0,0.00176833]
[1765077916878,0.24145202,89625.0,89624.0,0.00176833]
[1765077917443,0.21915202,89625.0,89624.0,0.00176833]
[1765077919161,0.24145202,89625.0,89624.0,0.00176833]
[1765077922852,0.21915202,89625.0,89624.0,0.00176833]
[1765077929005,0.24145202,89625.0,89624.0,0.00176833]
[1765077937037,0.21915202,89625.0,89624.0,0.00176833]
[1765077938841,0.24145202,89625.0,89624.0,0.00176833]
[1765077939033,0.21915202,89625.0,89624.0,0.00176833]
[1765077939995,0.24802202,89625.0,89624.0,0.00176833]
[1765077940173,0.29542889,89625.0,89624.0,0.00048234]
[1765077956847,0.24834889,89625.0,89624.0,0.00048234]
[1765077957052,0.23192889,89625.0,89624.0,0.00048234]
[1765077958094,0.25422889,89625.0,89624.0,0.00048234]
[1765077960810,0.21915202,89625.0,89624.0,0.04156833]
[1765077961459,0.21915202,89625.0,89624.0,0.01691833]
[1765077962458,0.24145202,89625.0,89624.0,0.00176833]
[1765077963053,0.21915202,89625.0,89624.0,0.00176833]
[1765077971468,0.24145202,89625.0,89624.0,0.00176833]
[1765077971668,0.21915202,89625.0,89624.0,0.00176833]
[1765077980861,0.24145202,89625.0,89624.0,0.00176833]
[1765077981057,0.28233202,89625.0,89624.0,0.00176833]
[1765077981464,0.28233202,89625.0,89624.0,0.00048234]
[1765077982675,0.26035889,89625.0,89624.0,0.00048234]
[1765077982878,0.28265889,89625.0,89624.0,0.00048234]
[1765077988077,0.29311678,89625.0,89624.0,0.00048234]
[1765077989056,5.38746545,89625.0,89624.0,0.00048234]
[1765077989273,5.41156089,89625.0,89624.0,0.00048234]
[1765077989485,5.44507383,89625.0,89624.0,0.00048234]
[1765077989920,5.35072516,89625.0,89624.0,0.00048234]
[1765077995457,2.36912516,89625.0,89624.0,0.00048234]
[1765077995653,2.37112516,89625.0,89624.0,0.00048234]
[1765077996394,4.24162516,89625.0,89624.0,0.00048234]
[1765077996539,4.21932516,89625.0,89624.0,0.00048234]
[1765077996745,4.19672516,89625.0,89624.0,0.00048234]
[1765077997147,4.77162516,89625.0,89624.0,0.00048234]
[1765077997355,4.65372516,89625.0,89624.0,0.00048234]
[1765077997752,4.76343022,89625.0,89624.0,0.00048234]
[1765077998188,5.48303022,89625.0,89624.0,0.00048234]
[1765077998672,5.37332516,89625.0,89624.0,0.00048234]
[1765077999079,0.37332516,89625.0,89624.0,0.00048234]
[1765077999416,5.34922972,89625.0,89624.0,0.00048234]
[1765077999616,5.37332516,89625.0,89624.0,0.00048234]
[1765078002126,5.69632516,89625.0,89624.0,0.00048234]
[1765078002425,5.80603022,89625.0,89624.0,0.00048234]
[1765078004178,5.76167769,89625.0,89624.0,0.00048234]
[1765078009037,5.76163853,89625.0,89624.0,0.00048234]
[1765078014217,5.79170888,89625.0,89624.0,0.00048234]
[1765078015353,0.79170888,89625.0,89624.0,0.00048234]
[1765078015551,5.79170888,89625.0,89624.0,0.00048234]
[1765078016136,5.76163853,89625.0,89624.0,0.00048234]
[1765078017348,0.76163853,89625.0,89624.0,0.00048234]
[1765078017562,5.76163853,89625.0,89624.0,0.00048234]
[1765078019427,0.76163853,89625.0,89624.0,0.00048234]
[1765078019574,5.76163853,89625.0,89624.0,0.00048234]
[1765078019779,5.76164018,89625.0,89624.0,0.00048234]
[1765078020348,0.76164018,89625.0,89624.0,0.00048234]
[1765078020547,5.76164018,89625.0,89624.0,0.00048234]
[1765078021210,5.65193512,89625.0,89624.0,0.00048234]
[1765078022378,0.65193512,89625.0,89624.0,0.00048234]
[1765078022583,5.65193512,89625.0,89624.0,0.00048234]
[1765078027536,5.60063512,89625.0,89624.0,0.00048234]
[1765078027768,2.45635512,89625.0,89624.0,0.00048234]
[1765078027949,2.49625512,89625.0,89624.0,0.00048234]
[1765078028538,3.28325512,89625.0,89624.0,0.00048234]
[1765078029579,3.69635512,89625.0,89624.0,0.00048234]
[1765078030637,3.68785512,89625.0,89624.0,0.00048234]
[1765078030921,3.62295512,89625.0,89624.0,0.00048234]
[1765078031586,3.61815512,89625.0,89624.0,0.00048234]
[1765078032647,2.93085512,89625.0,89624.0,0.00048234]
[1765078033650,3.51515512,89625.0,89624.0,0.00048234]
[1765078034291,3.18365512,89625.0,89624.0,0.00048234]
[1765078034587,4.00005512,89625.0,89624.0,0.00048234]
[1765078034797,3.97775512,89625.0,89624.0,0.00048234]
[1765078035092,3.65035512,89625.0,89624.0,0.00048234]
[1765078035455,3.44785512,89625.0,89624.0,0.00048234]
[1765078035655,3.16395512,89625.0,89624.0,0.00048234]
[1765078036353,3.15055512,89625.0,89624.0,0.00048234]
[1765078036603,3.47705512,89625.0,89624.0,0.00048234]
[1765078036821,3.15155512,89625.0,89624.0,0.00048234]
[1765078037729,3.40955512,89625.0,89624.0,0.00048234]
[1765078038163,3.08555512,89625.0,89624.0,0.00048234]
[1765078038784,3.08455512,89625.0,89624.0,0.00048234]
[1765078039183,3.08455916,89625.0,89624.0,0.00048234]
[1765078039743,3.07495916,89625.0,89624.0,0.00048234]
[1765078040425,3.06355916,89625.0,89624.0,0.00048234]
[1765078040808,3.06365916,89625.0,89624.0,0.00048234]
[1765078041347,1.38035916,89625.0,89624.0,0.00048234]
[1765078041708,0.65095916,89625.0,89624.0,0.00048234]
[1765078042043,2.70115916,89625.0,89624.0,0.00048234]
[1765078042816,4.61225916,89625.0,89624.0,0.00048234]
[1765078043419,4.23355916,89625.0,89624.0,0.00048234]
[1765078043621,3.84225916,89625.0,89624.0,0.00048234]
[1765078043933,4.18125916,89625.0,89624.0,0.00048234]
[1765078044753,4.28145916,89625.0,89624.0,0.00048234]
[1765078045196,4.24265916,89625.0,89624.0,0.00048234]
[1765078045907,4.10905916,89625.0,89624.0,0.00048234]
[1765078046314,3.79415916,89625.0,89624.0,0.00048234]
[1765078046841,0.65095916,89625.0,89624.0,0.00048234]
[1765078047118,4.40675916,89625.0,89624.0,0.00048234]
[1765078047435,3.88635916,89625.0,89624.0,0.00048234]
[1765078047642,3.73845916,89625.0,89624.0,0.00048234]
[1765078047769,0.65095916,89625.0,89624.0,0.00048234]
[1765078047975,3.77605916,89625.0,89624.0,0.00048234]
[1765078048824,0.65095916,89625.0,89624.0,0.00048234]
[1765078049029,3.76915916,89625.0,89624.0,0.00048234]
[1765078049881,4.23585916,89625.0,89624.0,0.00048234]
[1765078050481,4.23585947,89625.0,89624.0,0.00048234]
[1765078050904,4.37755947,89625.0,89624.0,0.00048234]
[1765078051118,4.23615947,89625.0,89624.0,0.00048234]
[1765078052007,4.39875947,89625.0,89624.0,0.00048234]
[1765078052181,4.23525947,89625.0,89624.0,0.00048234]
[1765078052950,4.28185947,89625.0,89624.0,0.00048234]
[1765078053177,3.76375947,89625.0,89624.0,0.00048234]
[1765078053901,4.58905947,89625.0,89624.0,0.00048234]
[1765078054113,3.63805947,89625.0,89624.0,0.00048234]
[1765078054905,4.29485947,89625.0,89624.0,0.00048234]
[1765078055106,4.15505947,89625.0,89624.0,0.00048234]
[1765078055550,3.68975947,89625.0,89624.0,0.00048234]
[1765078055911,4.47035947,89625.0,89624.0,0.00048234]
[1765078056108,4.33055947,89625.0,89624.0,0.00048234]
[1765078056296,3.75205947,89625.0,89624.0,0.00048234]
[1765078056496,2.18495947,89625.0,89624.0,0.00048234]
[1765078056944,2.83585947,89625.0,89624.0,0.00048234]
[1765078058086,4.10325947,89625.0,89624.0,0.00048234]
[1765078058224,3.69955947,89625.0,89624.0,0.00048234]
[1765078058967,0.65095947,89625.0,89624.0,0.00048234]
[1765078059171,3.67975947,89625.0,89624.0,0.00048234]
[1765078060008,3.69785947,89625.0,89624.0,0.00048234]
[1765078061057,3.69965947,89625.0,89624.0,0.00048234]
[1765078061710,2.74385947,89625.0,89624.0,0.00048234]
[1765078061892,0.27214653,89625.0,89624.0,0.00048234]
[1765078062091,0.24623025,89625.0,89624.0,0.00048234]
[1765078062262,0.22393025,89625.0,89624.0,0.00048234]
[1765078062590,0.24623025,89625.0,89624.0,0.00048234]
[1765078062931,0.25883025,89625.0,89624.0,0.00048234]
[1765078063116,0.28113025,89625.0,89624.0,0.00048234]
[1765078076566,0.23482025,89625.0,89624.0,0.00048234]
[1765078077097,0.24138025,89625.0,89624.0,0.00048234]
[1765078077745,0.19239949,89625.0,89624.0,0.00048234]
[1765078078099,0.19539949,89625.0,89624.0,0.00048234]
[1765078078860,0.19539949,89625.0,89624.0,0.00176833]
[1765078079066,0.19539949,89625.0,89624.0,0.01797833]
[1765078085434,0.21769949,89625.0,89624.0,0.00176833]
[1765078099281,0.19539949,89625.0,89624.0,0.00176833]
[1765078105790,0.21769949,89625.0,89624.0,0.00176833]
[1765078112803,0.19539949,89625.0,89624.0,0.00176833]
[1765078124265,0.21769949,89625.0,89624.0,0.00176833]
[1765078125465,0.22972949,89625.0,89624.0,0.00176833]
[1765078125672,0.25356949,89625.0,89624.0,0.00176833]
[1765078125882,0.22972949,89625.0,89624.0,0.00176833]
[1765078128860,0.26987949,89625.0,89624.0,0.00176833]
[1765078130558,0.24603949,89625.0,89624.0,0.00176833]
[1765078130877,0.22972949,89625.0,89624.0,0.00176833]
[1765078133505,0.20742949,89625.0,89624.0,0.00176833]
[1765078138170,0.19539949,89625.0,89624.0,0.00176833]
[1765078140232,0.21769949,89625.0,89624.0,0.00176833]
[1765078141727,0.19539949,89625.0,89624.0,0.00176833]
[1765078143033,0.21769949,89625.0,89624.0,0.00176833]
[1765078145756,0.19539949,89625.0,89624.0,0.00176833]
[1765078152956,0.21769949,89625.0,89624.0,0.00176833]
[1765078166315,0.19539949,89625.0,89624.0,0.00176833]
[1765078166527,0.21769949,89625.0,89624.0,0.00176833]
[1765078170808,0.19539949,89625.0,89624.0,0.00176833]
[1765078171133,0.21769949,89625.0,89624.0,0.00176833]
[1765078174295,0.24687949,89625.0,89624.0,0.00176833]
[1765078174511,0.26917949,89625.0,89624.0,0.00176833]
[1765078179454,0.24655949,89625.0,89624.0,0.00176833]
[1765078180280,0.23016949,89625.0,89624.0,0.00176833]
[1765078186302,0.23016949,89625.0,89624.0,0.02354833]
[1765078187560,0.23016949,89625.0,89624.0,0.00176833]
[1765078189859,0.20786949,89625.0,89624.0,0.00176833]
[1765078190442,0.19539949,89625.0,89624.0,0.00176833]
[1765078192169,0.17779949,89625.0,89624.0,0.02784833]
[1765078192329,0.19539949,89625.0,89624.0,0.05244833]
[1765078193065,0.19539949,89625.0,89624.0,0.07599666]
[1765078193830,0.19539949,89625.0,89624.0,0.05139666]
[1765078194980,0.19239949,89625.0,89624.0,0.05139666]
[1765078195320,0.19439949,89625.0,89624.0,0.05139666]
[1765078201359,0.19439949,89625.0,89624.0,0.03620666]
[1765078201765,0.19439949,89625.0,89624.0,0.02531666]
[1765078213787,0.21669949,89625.0,89624.0,0.02531666]
[1765078213989,0.19439949,89625.0,89624.0,0.02531666]
[1765078216752,0.22871949,89625.0,89624.0,0.02531666]
[1765078217109,0.20641949,89625.0,89624.0,0.02531666]
[1765078218157,0.22871949,89625.0,89624.0,0.02531666]
[1765078218654,0.20641949,89625.0,89624.0,0.02403067]
[1765078218813,0.26903949,89625.0,89624.0,0.00048234]
[1765078218994,0.29307016,89625.0,89624.0,0.00048234]
[1765078222439,0.26837016,89625.0,89624.0,0.00048234]
[1765078223787,0.29307016,89625.0,89624.0,0.00048234]
[1765078236247,0.27077016,89625.0,89624.0,0.00048234]
[1765078236451,0.26837016,89625.0,89624.0,0.00048234]
[1765078236763,0.25275016,89625.0,89624.0,0.00048234]
[1765078239263,0.23045016,89625.0,89624.0,0.00048234]
[1765078240090,0.27077016,89625.0,89624.0,0.00048234]
[1765078241534,0.21843016,89625.0,89624.0,0.00048234]
[1765078247152,0.19439949,89625.0,89624.0,0.00048234]
[1765078247471,0.19439949,89625.0,89623.0,0.00992001]
[1765078248571,0.17679949,89625.0,89624.0,0.04046]
[1765078248773,0.17479949,89625.0,89624.0,0.04046]
[1765078249092,0.17679949,89625.0,89624.0,0.04046]
[1765078249643,0.17579949,89625.0,89624.0,0.04046]
[1765078250113,0.17679949,89625.0,89624.0,0.04046]
[1765078250418,0.17579949,89625.0,89624.0,0.04046]
[1765078250780,0.17679949,89625.0,89624.0,0.04046]
[1765078252126,0.17679949,89625.0,89624.0,0.0158]
[1765078255476,0.17679949,89625.0,89624.0,0.07396586]
[1765078258398,0.17679949,89625.0,89624.0,0.07525185]
[1765078258604,0.002,89625.0,89624.0,0.07525185]
[1765078260189,0.001,89625.0,89624.0,0.07525185]
[1765078260614,0.0176,89626.0,89625.0,0.22315202]
[1765078260840,0.0176,89626.0,89625.0,0.26392202]
[1765078261198,0.0176,89626.0,89625.0,0.29742661]
[1765078261398,0.0176,89626.0,89625.0,0.2987126]
[1765078265910,0.0176,89626.0,89625.0,0.07556058]
[1765078272591,0.0176,89626.0,89625.0,0.08645058]
[1765078286082,0.0399,89626.0,89625.0,0.08645058]
[1765078286304,0.0176,89626.0,89625.0,0.08645058]
[1765078288016,0.08365261,89632.0,89630.0,0.01115697]
[1765078288183,0.08365261,89632.0,89631.0,0.0265]
[1765078288385,0.08365261,89632.0,89631.0,0.04907]
[1765078288584,0.08365261,89632.0,89631.0,0.0825413]
[1765078290006,0.08365261,89632.0,89631.0,0.0845413]
[1765078290210,0.08365261,89632.0,89631.0,0.08682729]
[1765078292010,0.08365261,89632.0,89631.0,0.10914099]
[1765078293930,0.08365261,89632.0,89631.0,0.08682729]
[1765078294135,0.23426054,89644.0,89631.0,0.08682729]
[1765078294136,0.01115523,89644.0,89637.0,0.0111561]
[1765078294338,0.243,89654.0,89644.0,0.01115523]
[1765078294339,0.08365261,89647.0,89644.0,0.01115523]
[1765078294537,0.08365261,89647.0,89646.0,0.23366974]
[1765078294741,0.08365261,89647.0,89646.0,0.21656692]
[1765078294945,0.01115399,89654.0,89651.0,0.01115436]
[1765078295151,0.01115399,89654.0,89653.0,0.02666]
[1765078295519,0.01115399,89654.0,89653.0,0.04923]
[1765078295721,0.01115399,89654.0,89653.0,0.07589]
[1765078296427,0.01115399,89654.0,89653.0,0.07689]
[1765078297870,0.01115399,89654.0,89653.0,0.07789]
[1765078307171,0.01115349,89658.0,89653.0,0.05123]
[1765078307376,0.01115349,89658.0,89655.0,0.01115386]
[1765078307609,0.01115349,89658.0,89657.0,0.0258]
[1765078308011,0.01115349,89658.0,89657.0,0.04894]
[1765078309043,0.02875336,89659.0,89657.0,0.04894]
[1765078309363,0.02875336,89659.0,89658.0,0.03837]
[1765078310843,0.02875336,89659.0,89658.0,0.03965599]
[1765078311453,0.0176,89659.0,89658.0,0.03965599]
[1765078323330,0.0176,89659.0,89658.0,0.26272587]
[1765078325968,0.0176,89659.0,89658.0,0.26372587]
[1765078326179,0.0176,89659.0,89658.0,0.26572587]
[1765078330899,0.05723,89659.0,89658.0,0.00428599]
[1765078331088,0.05723,89659.0,89658.0,0.003]
[1765078331089,0.30259739,89659.0,89658.0,0.003]
[1765078331315,0.28062426,89659.0,89658.0,0.003]
[1765078331518,0.30292426,89659.0,89658.0,0.003]
[1765078331915,0.22310223,89645.0,89637.0,0.01057]
[1765078332176,0.22310223,89645.0,89632.0,0.01057]
[1765078332177,0.22312961,89634.0,89632.0,0.01057]
[1765078333329,0.24068961,89634.0,89632.0,0.01057]
[1765078333690,0.24068961,89634.0,89632.0,0.01457]
[1765078333845,0.24068961,89634.0,89632.0,0.01057]
[1765078334029,0.22312961,89634.0,89633.0,0.01557]
[1765078334236,0.22312961,89634.0,89633.0,0.04135599]
[1765078334490,0.01115635,89635.0,89633.0,0.04135599]
[1765078334689,0.22312961,89634.0,89633.0,0.00128599]
[1765078335116,0.22312961,89634.0,89633.0,0.04135599]
[1765078335457,0.22312961,89634.0,89633.0,0.04235599]
[1765078335655,0.01115635,89635.0,89633.0,0.04235599]
[1765078335859,0.01115635,89635.0,89634.0,0.04007]
[1765078336104,0.01115635,89635.0,89634.0,0.04135599]
[1765078337394,0.01115635,89635.0,89634.0,0.04235599]
[1765078337790,0.01756,89636.0,89634.0,0.04235599]
[1765078337988,0.01756,89636.0,89635.0,0.04007]
[1765078338228,0.01756,89636.0,89635.0,0.04135599]
[1765078338580,0.24068463,89636.0,89635.0,0.04135599]
[1765078338856,0.01756,89636.0,89635.0,0.04135599]
[1765078339221,0.01756,89636.0,89635.0,0.04235599]
[1765078339622,0.01756,89636.0,89635.0,0.04335599]
[1765078343787,0.01756,89636.0,89635.0,0.01885599]
[1765078343994,0.01756,89636.0,89635.0,0.00328599]
[1765078347177,0.03986,89636.0,89635.0,0.00328599]
[1765078347382,0.03986,89636.0,89635.0,0.00228599]
[1765078347778,0.03986,89636.0,89635.0,0.00128599]
[1765078348039,0.01756,89636.0,89635.0,0.00128599]
[1765078349493,0.01115697,89630.0,89627.0,0.01057]
[1765078349695,0.01115697,89630.0,89621.0,0.323]
[1765078349696,0.22314953,89626.0,89621.0,0.323]
[1765078350085,0.22314953,89626.0,89624.0,0.02114]
[1765078350295,0.22314953,89626.0,89624.0,0.01185599]
[1765078351584,0.22314953,89626.0,89624.0,0.01285599]
[1765078351782,0.22314953,89626.0,89624.0,0.01485599]
[1765078369515,0.01115735,89627.0,89625.0,0.03956]
[1765078369715,0.01115735,89627.0,89626.0,0.02654]
[1765078369932,0.01115735,89627.0,89626.0,0.05013]
[1765078370211,0.01115735,89627.0,89626.0,0.05141599]
[1765078370425,0.01115722,89628.0,89626.0,0.05141599]
[1765078370564,0.01115722,89628.0,89627.0,0.03956]